fUST/lending_fUST_20250628
["ID","MTS","AMOUNT","RATE_DAILY","PERIOD"]
[368236131,1751069255502,-1943.05,0.00019178,2]
[368236132,1751069255525,-1943.05,0.00019178,2]
[368236133,1751069255547,-985.25,0.00019178,2]
[368236134,1751069255569,-460.0,0.00019178,2]
[368236135,1751069255590,-460.0,0.00019178,2]
[368236136,1751069255614,-776.77,0.00019178,2]
[368236137,1751069255638,-460.0,0.00019178,2]
[368236138,1751069255660,-460.0,0.00019178,2]
[368236139,1751069255680,-100000.0,0.00019329,2]
[368236140,1751069255703,-1943.05,0.00019351,2]
[368236141,1751069255726,-837.58,0.00019442,3]
[368236142,1751069255747,-190.68,0.00019442,3]
[368236143,1751069255770,-572.09,0.00019442,3]
[368236144,1751069255792,-500.0,0.00019451,2]
[368236145,1751069255816,-500.0,0.00019451,2]
[368236146,1751069255838,-500.0,0.00019451,2]
[368236147,1751069255859,-500.0,0.00019451,2]
[368236148,1751069255880,-500.0,0.00019451,2]
[368236149,1751069255903,-475.14526077,0.00019451,2]
[368236150,1751069255925,-1943.05,0.00019451,2]
[368236151,1751069255947,-1943.05,0.00019451,2]
[368236152,1751069255971,-1943.05,0.00019451,2]
[368236153,1751069255992,-1943.05,0.00019451,2]
[368236154,1751069256016,-1943.05,0.00019451,2]
[368236155,1751069256040,-1943.05,0.00019451,2]
[368236156,1751069256064,-1943.05,0.00019451,2]
[368236157,1751069256087,-1943.05,0.00019451,2]
[368236158,1751069256111,-1943.05,0.00019451,2]
[368236159,1751069256135,-1943.24453367,0.00019451,2]
[368236160,1751069256158,-336.85136243,0.00019452,2]
[368236161,1751069256179,-460.0,0.00019452,2]
[368236162,1751069256203,-460.0,0.00019452,2]
[368236163,1751069256226,-460.0,0.00019452,2]
[368236164,1751069256246,-460.0,0.00019452,2]
[368236165,1751069256267,-460.0,0.00019452,2]
[368236166,1751069256287,-460.0,0.00019452,2]
[368236167,1751069256311,-460.0,0.00019452,2]
[368236168,1751069256334,-460.0,0.00019452,2]
[368236169,1751069256356,-460.0,0.00019452,2]
[368236170,1751069256377,-460.0,0.00019452,2]
[368236171,1751069256399,-460.0,0.00019452,2]
[368236172,1751069256419,-460.0,0.00019452,2]
[368236173,1751069256441,-460.0,0.00019452,2]
[368236174,1751069256460,-460.0,0.00019452,2]
[368236175,1751069256481,-693.28,0.00019452,2]
[368236176,1751069256501,-460.0,0.00019452,2]
[368236177,1751069256521,-460.0,0.00019452,2]
[368236178,1751069256541,-460.0,0.00019452,2]
[368236179,1751069256562,-394.91559857,0.00019452,2]
[368236180,1751069256583,-460.0,0.00019452,2]
[368236181,1751069256602,-320.3281074,0.00019452,2]
[368236182,1751069256623,-460.0,0.00019452,2]
[368236183,1751069256644,-460.0,0.00019452,2]
[368236184,1751069256663,-460.0,0.00019452,2]
[368236185,1751069256683,-460.0,0.00019452,2]
[368236186,1751069256704,-460.0,0.00019452,2]
[368236187,1751069256724,-460.0,0.00019452,2]
[368236188,1751069256745,-526.76941475,0.00019452,2]
[368236189,1751069256765,-501.85,0.00019452,2]
[368236190,1751069256787,-460.0,0.00019452,2]
[368236191,1751069256814,-460.0,0.00019452,2]
[368236192,1751069256835,-460.0,0.00019452,2]
[368236193,1751069256856,-460.0,0.00019452,2]
[368236194,1751069256878,-460.0,0.00019452,2]
[368236195,1751069256899,-460.0,0.00019452,2]
[368236196,1751069256920,-460.0,0.00019452,2]
[368236197,1751069256941,-460.0,0.00019452,2]
[368236198,1751069256962,-460.0,0.00019452,2]
[368236199,1751069256983,-460.0,0.00019452,2]
[368236200,1751069257005,-500.0,0.00019452,2]
[368236201,1751069257027,-937.89,0.00019452,2]
[368236202,1751069257048,-460.0,0.00019452,2]
[368236203,1751069257070,-606.81,0.00019452,2]
[368236204,1751069257090,-460.0,0.00019452,2]
[368236205,1751069257112,-460.0,0.00019452,2]
[368236206,1751069257133,-1238.93,0.00019452,2]
[368236207,1751069257154,-460.0,0.00019452,2]
[368236208,1751069257174,-295.4470454,0.00019452,2]
[368236209,1751069257196,-460.0,0.00019452,2]
[368236210,1751069257217,-460.0,0.00019452,2]
[368236211,1751069257239,-553.24,0.00019452,2]
[368236212,1751069257264,-460.0,0.00019452,2]
[368236213,1751069257285,-460.0,0.00019452,2]
[368236214,1751069257304,-471.98705521,0.00019452,2]
[368236215,1751069257325,-460.0,0.00019452,2]
[368236216,1751069257346,-560.98375565,0.00019452,2]
[368236217,1751069257367,-328.08587698,0.00019452,2]
[368236218,1751069257387,-460.0,0.00019452,2]
[368236219,1751069257406,-460.0,0.00019452,2]
[368236220,1751069257429,-460.0,0.00019452,2]
[368236221,1751069257450,-460.0,0.00019452,2]
[368236222,1751069257471,-460.0,0.00019452,2]
[368236223,1751069257491,-611.21,0.00019452,2]
[368236224,1751069257511,-470.6715418,0.00019452,2]
[368236225,1751069257531,-460.0,0.00019452,2]
[368236226,1751069257552,-460.0,0.00019452,2]
[368236227,1751069257573,-460.0,0.00019452,2]
[368236228,1751069257593,-460.0,0.00019452,2]
[368236229,1751069257612,-460.0,0.00019452,2]
[368236230,1751069257633,-460.0,0.00019452,2]
[368236231,1751069257655,-460.0,0.00019452,2]
[368236232,1751069257676,-460.0,0.00019452,2]
[368236233,1751069257699,-460.0,0.00019452,2]
[368236234,1751069257723,-460.0,0.00019452,2]
[368236235,1751069257745,-460.0,0.00019452,2]
[368236236,1751069257769,-460.0,0.00019452,2]
[368236237,1751069257790,-460.0,0.00019452,2]
[368236238,1751069257817,-460.0,0.00019452,2]
[368236239,1751069257838,-460.0,0.00019452,2]
[368236240,1751069257860,-460.0,0.00019452,2]
[368236241,1751069257883,-460.0,0.00019452,2]
[368236242,1751069257905,-644.96,0.00019452,2]
[368236243,1751069257931,-6370.88,0.00019452,2]
[368236244,1751069257954,-460.0,0.00019452,2]
[368236245,1751069257976,-460.0,0.00019452,2]
[368236246,1751069257998,-460.0,0.00019452,2]
[368236247,1751069258019,-460.0,0.00019452,2]
[368236248,1751069258042,-1587.2,0.00019452,2]
[368236249,1751069258062,-460.0,0.00019452,2]
[368236250,1751069258084,-460.0,0.00019452,2]
[368236251,1751069258105,-503.48574085,0.00019452,2]
[368236252,1751069258125,-460.0,0.00019452,2]
[368236253,1751069258146,-460.0,0.00019452,2]
[368236254,1751069258166,-456.48383248,0.00019452,2]
[368236255,1751069258187,-460.0,0.00019452,2]
[368236256,1751069258211,-4149.07,0.00019452,2]
[368236257,1751069258232,-445.31,0.00019452,2]
[368236258,1751069258389,-460.0,0.00019452,2]
[368236259,1751069258412,-460.0,0.00019452,2]
[368236260,1751069258433,-470.0,0.00019452,2]
[368236261,1751069258455,-380.88661246,0.00019452,2]
[368236262,1751069258478,-1877.38,0.00019452,2]
[368236263,1751069258498,-416.60736158,0.00019452,2]
[368236264,1751069258519,-464.53432958,0.00019452,2]
[368236265,1751069258540,-460.0,0.00019452,2]
[368236266,1751069258562,-345.10663291,0.00019452,2]
[368236267,1751069258583,-460.0,0.00019452,2]
[368236268,1751069258608,-3684.52,0.00019452,2]
[368236269,1751069258629,-1032.55,0.00019452,2]
[368236270,1751069258651,-460.0,0.00019452,2]
[368236271,1751069258671,-460.0,0.00019452,2]
[368236272,1751069258692,-460.0,0.00019452,2]
[368236273,1751069258716,-2161.48,0.00019452,2]
[368236274,1751069258737,-460.0,0.00019452,2]
[368236275,1751069258759,-4601.74,0.00019452,2]
[368236276,1751069258779,-460.0,0.00019452,2]
[368236277,1751069258801,-460.0,0.00019452,2]
[368236278,1751069258823,-206.83702132,0.00019452,2]
[368236279,1751069258846,-460.0,0.00019452,2]
[368236280,1751069258869,-460.0,0.00019452,2]
[368236281,1751069258890,-460.0,0.00019452,2]
[368236282,1751069258914,-2144.36,0.00019452,2]
[368236283,1751069258934,-460.0,0.00019452,2]
[368236284,1751069258954,-460.0,0.00019452,2]
[368236285,1751069258977,-460.0,0.00019452,2]
[368236286,1751069258999,-460.0,0.00019452,2]
[368236287,1751069259021,-871.78,0.00019452,2]
[368236288,1751069259044,-891.11,0.00019452,2]
[368236289,1751069259065,-460.0,0.00019452,2]
[368236290,1751069259089,-1456.66,0.00019452,2]
[368236291,1751069259110,-460.0,0.00019452,2]
[368236292,1751069259132,-465.20090635,0.00019452,2]
[368236293,1751069259154,-460.0,0.00019452,2]
[368236294,1751069259176,-460.0,0.00019452,2]
[368236295,1751069259197,-460.0,0.00019452,2]
[368236296,1751069259221,-460.0,0.00019452,2]
[368236297,1751069259242,-460.0,0.00019452,2]
[368236298,1751069259263,-460.0,0.00019452,2]
[368236299,1751069259285,-460.0,0.00019452,2]
[368236300,1751069259308,-598.91,0.00019452,2]
[368236301,1751069259330,-460.0,0.00019452,2]
[368236302,1751069259352,-460.0,0.00019452,2]
[368236303,1751069259374,-460.0,0.00019452,2]
[368236304,1751069259395,-460.0,0.00019452,2]
[368236305,1751069259419,-2393.51,0.00019452,2]
[368236306,1751069259440,-460.0,0.00019452,2]
[368236307,1751069259463,-460.0,0.00019452,2]
[368236308,1751069259484,-460.0,0.00019452,2]
[368236309,1751069259505,-460.0,0.00019452,2]
[368236310,1751069259528,-460.0,0.00019452,2]
[368236311,1751069259549,-460.0,0.00019452,2]
[368236312,1751069259571,-460.0,0.00019452,2]
[368236313,1751069259593,-460.0,0.00019452,2]
[368236314,1751069259616,-460.0,0.00019452,2]
[368236315,1751069259638,-739.35,0.00019452,2]
[368236316,1751069259659,-460.0,0.00019452,2]
[368236317,1751069259679,-460.0,0.00019452,2]
[368236318,1751069259700,-460.0,0.00019452,2]
[368236319,1751069259724,-962.11,0.00019452,2]
[368236320,1751069259749,-460.0,0.00019452,2]
[368236321,1751069259771,-460.0,0.00019452,2]
[368236322,1751069259795,-656.78,0.00019452,2]
[368236323,1751069259818,-658.13,0.00019452,2]
[368236324,1751069259840,-460.0,0.00019452,2]
[368236325,1751069259861,-460.0,0.00019452,2]
[368236326,1751069259885,-4302.12,0.00019452,2]
[368236327,1751069259907,-460.0,0.00019452,2]
[368236328,1751069259930,-1223.02,0.00019452,2]
[368236329,1751069259952,-460.0,0.00019452,2]
[368236330,1751069259972,-460.9588393,0.00019452,2]
[368236331,1751069259993,-462.12005313,0.00019452,2]
[368236332,1751069260015,-460.0,0.00019452,2]
[368236333,1751069260036,-460.0,0.00019452,2]
[368236334,1751069260058,-460.0,0.00019452,2]
[368236335,1751069260081,-849.63,0.00019452,2]
[368236336,1751069260105,-3090.56,0.00019452,2]
[368236337,1751069260128,-1034.9,0.00019452,2]
[368236338,1751069260150,-460.0,0.00019452,2]
[368236339,1751069260174,-3216.99,0.00019452,2]
[368236340,1751069260194,-460.0,0.00019452,2]
[368236341,1751069260217,-836.73,0.00019452,2]
[368236342,1751069260240,-460.0,0.00019452,2]
[368236343,1751069260263,-460.0,0.00019452,2]
[368236344,1751069260293,-2805.06,0.00019452,2]
[368236345,1751069260317,-921.84,0.00019452,2]
[368236346,1751069260338,-460.0,0.00019452,2]
[368236347,1751069260361,-596.67,0.00019452,2]
[368236348,1751069260383,-460.0,0.00019452,2]
[368236349,1751069260405,-460.0,0.00019452,2]
[368236350,1751069260427,-460.0,0.00019452,2]
[368236351,1751069260448,-460.0,0.00019452,2]
[368236352,1751069260470,-460.0,0.00019452,2]
[368236353,1751069260493,-755.37,0.00019452,2]
[368236354,1751069260515,-460.0,0.00019452,2]
[368236355,1751069260537,-460.0,0.00019452,2]
[368236356,1751069260559,-460.0,0.00019452,2]
[368236357,1751069260581,-460.0,0.00019452,2]
[368236358,1751069260603,-460.0,0.00019452,2]
[368236359,1751069260629,-460.0,0.00019452,2]
[368236360,1751069260650,-460.0,0.00019452,2]
[368236361,1751069260673,-968.77,0.00019452,2]
[368236362,1751069260695,-460.0,0.00019452,2]
[368236363,1751069260717,-460.0,0.00019452,2]
[368236364,1751069260738,-460.0,0.00019452,2]
[368236365,1751069260760,-460.0,0.00019452,2]
[368236366,1751069260782,-460.0,0.00019452,2]
[368236367,1751069260808,-460.0,0.00019452,2]
[368236368,1751069260831,-460.0,0.00019452,2]
[368236369,1751069260853,-460.0,0.00019452,2]
[368236370,1751069260876,-460.0,0.00019452,2]
[368236371,1751069260897,-460.0,0.00019452,2]
[368236372,1751069260918,-460.0,0.00019452,2]
[368236373,1751069260943,-500.0,0.00019452,2]
[368236374,1751069260965,-460.0,0.00019452,2]
[368236375,1751069260986,-460.0,0.00019452,2]
[368236376,1751069261006,-460.0,0.00019452,2]
[368236377,1751069261026,-460.0,0.00019452,2]
[368236378,1751069261047,-460.0,0.00019452,2]
[368236379,1751069261070,-460.0,0.00019452,2]
[368236380,1751069261091,-460.0,0.00019452,2]
[368236381,1751069261110,-460.0,0.00019452,2]
[368236382,1751069261130,-460.0,0.00019452,2]
[368236383,1751069261151,-460.0,0.00019452,2]
[368236384,1751069261172,-460.0,0.00019452,2]
[368236385,1751069261193,-460.0,0.00019452,2]
[368236386,1751069261217,-933.29,0.00019452,2]
[368236387,1751069261238,-460.0,0.00019452,2]
[368236388,1751069261259,-460.0,0.00019452,2]
[368236389,1751069261280,-460.0,0.00019452,2]
[368236390,1751069261303,-1411.62,0.00019452,2]
[368236391,1751069261327,-460.0,0.00019452,2]
[368236392,1751069261350,-460.0,0.00019452,2]
[368236393,1751069261372,-460.0,0.00019452,2]
[368236394,1751069261394,-460.0,0.00019452,2]
[368236395,1751069261416,-460.0,0.00019452,2]
[368236396,1751069261437,-460.0,0.00019452,2]
[368236397,1751069261460,-2856.14,0.00019452,2]
[368236398,1751069261484,-460.0,0.00019452,2]
[368236399,1751069261507,-1809.44,0.00019452,2]
[368236400,1751069261529,-4301.97,0.00019452,2]
[368236401,1751069261550,-460.0,0.00019452,2]
[368236402,1751069261578,-460.0,0.00019452,2]
[368236403,1751069261602,-460.0,0.00019452,2]
[368236404,1751069261624,-460.0,0.00019452,2]
[368236405,1751069261648,-4370.98,0.00019452,2]
[368236406,1751069261671,-286.49905385,0.00019452,2]
[368236407,1751069261696,-460.0,0.00019452,2]
[368236408,1751069261719,-460.0,0.00019452,2]
[368236409,1751069261742,-460.0,0.00019452,2]
[368236410,1751069261768,-500.0,0.00019452,2]
[368236411,1751069261793,-461.878899,0.00019452,2]
[368236412,1751069261820,-460.0,0.00019452,2]
[368236413,1751069261843,-419.50317659,0.00019452,2]
[368236414,1751069261867,-460.0,0.00019452,2]
[368236415,1751069261889,-460.0,0.00019452,2]
[368236416,1751069261913,-2953.07,0.00019452,2]
[368236417,1751069261934,-460.0,0.00019452,2]
[368236418,1751069261956,-588.09361166,0.00019452,2]
[368236419,1751069261978,-460.0,0.00019452,2]
[368236420,1751069262000,-460.0,0.00019452,2]
[368236421,1751069262023,-460.0,0.00019452,2]
[368236422,1751069262178,-683.51,0.00019452,2]
[368236423,1751069262201,-460.0,0.00019452,2]
[368236424,1751069262225,-460.0,0.00019452,2]
[368236425,1751069262248,-623.39,0.00019452,2]
[368236426,1751069262271,-460.0,0.00019452,2]
[368236427,1751069262293,-460.0,0.00019452,2]
[368236428,1751069262318,-967.54,0.00019452,2]
[368236429,1751069262340,-460.0,0.00019452,2]
[368236430,1751069262363,-460.0,0.00019452,2]
[368236431,1751069262386,-460.0,0.00019452,2]
[368236432,1751069262409,-460.0,0.00019452,2]
[368236433,1751069262431,-1174.69,0.00019452,2]
[368236434,1751069262453,-781.08,0.00019452,2]
[368236435,1751069262475,-868.86,0.00019452,2]
[368236436,1751069262498,-1594.3,0.00019452,2]
[368236437,1751069262520,-7532.63,0.00019452,2]
[368236438,1751069262542,-460.0,0.00019452,2]
[368236439,1751069262567,-460.0,0.00019452,2]
[368236440,1751069262588,-461.27072419,0.00019452,2]
[368236441,1751069262613,-460.0,0.00019452,2]
[368236442,1751069262635,-460.0,0.00019452,2]
[368236443,1751069262658,-460.0,0.00019452,2]
[368236444,1751069262681,-460.0,0.00019452,2]
[368236445,1751069262704,-985.25,0.00019452,2]
[368236446,1751069262727,-460.0,0.00019452,2]
[368236447,1751069262753,-776.77,0.00019452,2]
[368236448,1751069262775,-460.0,0.00019452,2]
[368236449,1751069262800,-485.62165416,0.00019608,2]
[368236450,1751069262821,-4169.36243609,0.00019626,2]
[368236481,1751069431829,-160.0,0.00018127,2]
[368236483,1751069431839,-160.0,0.00018127,2]
[368236485,1751069431849,-644.02039358,0.000189,2]
[368236487,1751069431864,-523.96308166,0.000189,2]
[368236489,1751069431874,-675.76168037,0.00019078,2]
[368236491,1751069431884,-180.0,0.00019176,2]
[368236493,1751069431893,-300.0,0.00019176,2]
[368236495,1751069431902,-153.0,0.00019176,2]
[368236497,1751069431911,-1200.0,0.00019176,2]
[368236499,1751069431920,-526.14461574,0.00019177,2]
[368236502,1751069431937,-11115.50044284,0.00019177,2]
[368236504,1751069431946,-581.31360987,0.00019177,2]
[368236506,1751069431955,-500.0,0.00019177,2]
[368236508,1751069431965,-500.0,0.00019177,2]
[368236510,1751069431975,-500.0,0.00019177,2]
[368236512,1751069431984,-500.0,0.00019177,2]
[368236514,1751069431994,-290.96870564,0.00019177,2]
[368236516,1751069432003,-500.0,0.00019177,2]
[368236518,1751069432012,-500.0,0.00019177,2]
[368236519,1751069432023,-500.0,0.00019177,2]
[368236521,1751069432036,-500.0,0.00019177,2]
[368236523,1751069432045,-500.0,0.00019177,2]
[368236525,1751069432055,-500.0,0.00019177,2]
[368236526,1751069432064,-593.10715324,0.00019177,2]
[368236529,1751069432074,-500.0,0.00019177,2]
[368236531,1751069432083,-500.0,0.00019177,2]
[368236533,1751069432093,-460.0,0.00019178,2]
[368236535,1751069432102,-460.0,0.00019178,2]
[368236537,1751069432115,-460.0,0.00019178,2]
[368236539,1751069432126,-460.0,0.00019178,2]
[368236540,1751069432135,-460.0,0.00019178,2]
[368236543,1751069432145,-468.0735199,0.00019178,2]
[368236545,1751069432154,-460.0,0.00019178,2]
[368236547,1751069432164,-460.0,0.00019178,2]
[368236549,1751069432174,-460.0,0.00019178,2]
[368236551,1751069432183,-460.62478076,0.00019178,2]
[368236553,1751069432192,-460.0,0.00019178,2]
[368236555,1751069432201,-460.0,0.00019178,2]
[368236557,1751069432210,-460.0,0.00019178,2]
[368236559,1751069432221,-778.82,0.00019178,2]
[368236561,1751069432230,-460.0,0.00019178,2]
[368236563,1751069432240,-460.0,0.00019178,2]
[368236565,1751069432249,-460.0,0.00019178,2]
[368236567,1751069432258,-6548.65,0.00019178,2]
[368236569,1751069432267,-460.0,0.00019178,2]
[368236571,1751069432276,-460.0,0.00019178,2]
[368236573,1751069432286,-4565.03,0.00019178,2]
[368236575,1751069432295,-467.1087756,0.00019178,2]
[368236577,1751069432304,-352.46589784,0.00019178,2]
[368236579,1751069432314,-460.0,0.00019178,2]
[368236581,1751069432323,-460.0,0.00019178,2]
[368236583,1751069432332,-460.0,0.00019178,2]
[368236585,1751069432342,-606.49532367,0.00019178,2]
[368236587,1751069432351,-307.23620445,0.00019178,2]
[368236588,1751069432360,-392.85289509,0.00019178,2]
[368236590,1751069432369,-461.18437299,0.00019178,2]
[368236592,1751069432379,-305.20686427,0.00019178,2]
[368236594,1751069432388,-460.0,0.00019178,2]
[368236597,1751069432398,-837.56,0.00019178,2]
[368236598,1751069432407,-2056.83,0.00019178,2]
[368236600,1751069432416,-458.74,0.00019178,2]
[368236603,1751069432426,-460.0,0.00019178,2]
[368236605,1751069432435,-773.6,0.00019178,2]
[368236607,1751069432444,-460.0,0.00019178,2]
[368236609,1751069432453,-460.0,0.00019178,2]
[368236610,1751069432463,-460.0,0.00019178,2]
[368236612,1751069432472,-460.0,0.00019178,2]
[368236615,1751069432482,-460.0,0.00019178,2]
[368236617,1751069432492,-1651.62,0.00019178,2]
[368236619,1751069432501,-460.0,0.00019178,2]
[368236620,1751069432510,-460.0,0.00019178,2]
[368236623,1751069432519,-460.0,0.00019178,2]
[368236624,1751069432529,-460.0,0.00019178,2]
[368236626,1751069432538,-541.56883614,0.00019178,2]
[368236629,1751069432548,-460.0,0.00019178,2]
[368236631,1751069432558,-460.0,0.00019178,2]
[368236632,1751069432567,-2412.84,0.00019178,2]
[368236634,1751069432577,-460.0,0.00019178,2]
[368236637,1751069432586,-1798.36,0.00019178,2]
[368236639,1751069432595,-460.0,0.00019178,2]
[368236640,1751069432605,-460.0,0.00019178,2]
[368236642,1751069432614,-460.0,0.00019178,2]
[368236645,1751069432626,-460.0,0.00019178,2]
[368236647,1751069432635,-460.0,0.00019178,2]
[368236649,1751069432644,-460.0,0.00019178,2]
[368236651,1751069432654,-460.0,0.00019178,2]
[368236653,1751069432663,-460.0,0.00019178,2]
[368236655,1751069432672,-881.93,0.00019178,2]
[368236657,1751069432681,-460.0,0.00019178,2]
[368236659,1751069432691,-460.0,0.00019178,2]
[368236661,1751069432700,-429.08357843,0.00019178,2]
[368236662,1751069432709,-460.0,0.00019178,2]
[368236664,1751069432718,-236.68258152,0.00019178,2]
[368236666,1751069432727,-460.0,0.00019178,2]
[368236668,1751069432737,-460.0,0.00019178,2]
[368236670,1751069432747,-708.68,0.00019178,2]
[368236672,1751069432756,-803.91,0.00019178,2]
[368236674,1751069432765,-460.0,0.00019178,2]
[368236676,1751069432775,-460.0,0.00019178,2]
[368236678,1751069432784,-1121.1,0.00019178,2]
[368236681,1751069432793,-2234.01,0.00019178,2]
[368236683,1751069432803,-1658.66,0.00019178,2]
[368236685,1751069432813,-537.29330944,0.00019178,2]
[368236687,1751069432823,-1380.32,0.00019178,2]
[368236689,1751069432833,-993.99,0.00019178,2]
[368236691,1751069432842,-455.7281,0.00019178,2]
[368236693,1751069432852,-439.28564026,0.00019178,2]
[368236695,1751069432863,-630.39,0.00019178,2]
[368236696,1751069432872,-785.84,0.00019178,2]
[368236698,1751069432881,-461.72499598,0.00019178,2]
[368236700,1751069432891,-460.0,0.00019178,2]
[368236702,1751069432902,-460.0,0.00019178,2]
[368236704,1751069432912,-169.05272564,0.00019178,2]
[368236706,1751069432921,-549.0,0.00019178,2]
[368236708,1751069432931,-460.0,0.00019178,2]
[368236710,1751069432940,-460.0,0.00019178,2]
[368236712,1751069432950,-460.0,0.00019178,2]
[368236714,1751069432960,-845.02,0.00019178,2]
[368236716,1751069432969,-767.01,0.00019178,2]
[368236718,1751069432979,-190.61138434,0.00019178,2]
[368236721,1751069432989,-460.0,0.00019178,2]
[368236723,1751069432999,-460.0,0.00019178,2]
[368236725,1751069433008,-546.95,0.00019178,2]
[368236727,1751069433017,-460.0,0.00019178,2]
[368236729,1751069433026,-357.30282231,0.00019178,2]
[368236730,1751069433036,-460.0,0.00019178,2]
[368236733,1751069433045,-460.0,0.00019178,2]
[368236735,1751069433055,-2948.91,0.00019178,2]
[368236737,1751069433064,-460.0,0.00019178,2]
[368236739,1751069433074,-460.0,0.00019178,2]
[368236741,1751069433084,-460.0,0.00019178,2]
[368236743,1751069433093,-460.0,0.00019178,2]
[368236745,1751069433104,-460.0,0.00019178,2]
[368236746,1751069433114,-460.0,0.00019178,2]
[368236749,1751069433126,-2571.3,0.00019178,2]
[368236751,1751069433136,-460.0,0.00019178,2]
[368236752,1751069433146,-888.04,0.00019178,2]
[368236755,1751069433156,-460.0,0.00019178,2]
[368236757,1751069433166,-460.0,0.00019178,2]
[368236759,1751069433176,-584.64946507,0.00019178,2]
[368236760,1751069433185,-665.68,0.00019178,2]
[368236763,1751069433195,-305.65780778,0.00019178,2]
[368236765,1751069433205,-460.0,0.00019178,2]
[368236766,1751069433214,-753.53,0.00019178,2]
[368236769,1751069433225,-460.9824219,0.00019178,2]
[368236770,1751069433234,-430.0,0.00019178,2]
[368236773,1751069433244,-460.0,0.00019178,2]
[368236775,1751069433253,-606.50134723,0.00019178,2]
[368236776,1751069433262,-460.0,0.00019178,2]
[368236778,1751069433272,-460.0,0.00019178,2]
[368236780,1751069433281,-460.0,0.00019178,2]
[368236782,1751069433291,-903.14,0.00019178,2]
[368236785,1751069433300,-460.0,0.00019178,2]
[368236786,1751069433309,-460.0,0.00019178,2]
[368236788,1751069433318,-1322.41,0.00019178,2]
[368236790,1751069433328,-460.0,0.00019178,2]
[368236792,1751069433337,-460.0,0.00019178,2]
[368236794,1751069433346,-460.0,0.00019178,2]
[368236796,1751069433356,-460.0,0.00019178,2]
[368236799,1751069433366,-187.53255985,0.00019178,2]
[368236801,1751069433376,-460.0,0.00019178,2]
[368236802,1751069433385,-460.0,0.00019178,2]
[368236804,1751069433395,-151.74548664,0.00019178,2]
[368236807,1751069433404,-1293.98,0.00019178,2]
[368236809,1751069433414,-464.77243366,0.00019178,2]
[368236811,1751069433423,-460.0,0.00019178,2]
[368236812,1751069433433,-460.0,0.00019178,2]
[368236815,1751069433442,-462.12800727,0.00019178,2]
[368236817,1751069433451,-500.0,0.00019178,2]
[368236819,1751069433462,-460.0,0.00019452,2]
[368236821,1751069433471,-460.0,0.00019452,2]
[368236823,1751069433480,-422.95847629,0.00019452,2]
[368236825,1751069433489,-460.0,0.00019452,2]
[368236827,1751069433499,-460.0,0.00019452,2]
[368236829,1751069433508,-460.0,0.00019452,2]
[368236830,1751069433517,-460.0,0.00019452,2]
[368236833,1751069433527,-460.0,0.00019452,2]
[368236834,1751069433536,-460.0,0.00019452,2]
[368236837,1751069433546,-460.0,0.00019452,2]
[368236839,1751069433556,-460.0,0.00019452,2]